Cogmind - Beta 13 @@@ ROGUE MODE // 2024.04.11 @ 09:14:53 Player: A Moose Result: Destroyed by Y-45 Defender with Beam Rifle Performance ------------- Evolutions (1) 500 Regions Visited (3) 600 Robots Destroyed (49) 245 Value Destroyed (1067) 1067 Prototype IDs (0) 0 Alien Tech Used (0) 0 Bonus (11) 11 TOTAL SCORE: 2423 Bonus ------- High Alert Combat Kills 11 Cogmind --------- Core Integrity 0/400 Matter 60/300 Energy 258/265 System Corruption 11% Temperature Cool (11) Movement Flying (37) Location -9/Materials Parts ------- > --- POWER (1) -------- Improved Ion Engine > --- PROPULSION (2) --- Flight Unit Flight Unit > --- UTILITY (4) ------ Improved Terrain Scanner > --- WEAPON (2) ------- (None) > --- INVENTORY (5) ---- Light Ion Engine Light Nuclear Core Flight Unit Improved Heat Sink Heavy Assault Rifle Peak State ------------ > --- POWER ------------ Light Nuclear Core > --- PROPULSION ------- Flexi-carbon Leg Flexi-carbon Leg > --- UTILITY ---------- Small Storage Unit Sensor Array Signal Interpreter Seismic Detector > --- WEAPON ----------- Heavy Assault Rifle Bore Cannon > --- INVENTORY -------- Light Ion Engine Light Nuclear Core Light Treads Improved Heat Sink Rocket Launcher Datajack [Rating: 25] Favorites ----------- Power Ion Engine Engine Ion Engine Power Core Light Nuclear Core Propulsion Light Treads Treads Light Treads Leg Flexi-carbon Leg Wheel Wheel Flight Unit Flight Unit Utility Small Storage Unit Device Seismic Detector Storage Small Storage Unit Processor Signal Interpreter Hackware Hacking Suite Weapon Assault Rifle Energy Gun Medium Laser Ballistic Gun Assault Rifle Ballistic Cannon Bore Cannon Launcher Rocket Launcher Special Melee Weapon Datajack Build | -11 -10 -10 -9 ------- Run | Yrd Mat Min Mat Slots Evolved 2 | . . . 2 Power . | . . . . Propulsion . | . . . . Utility 2 | . . . 2 Weapon . | . . . . Parts Attached 44 | 7 12 4 21 Power 3 | 1 . . 2 Engine 2 | 1 . . 1 Core 1 | . . . 1 Reactor . | . . . . Propulsion 15 | 2 4 2 7 Treads 6 | . 4 . 2 Leg 4 | . . 2 2 Wheel 3 | 2 . . 1 Hover . | . . . . Flight 2 | . . . 2 Utility 7 | 1 2 . 4 Device 4 | . 1 . 3 Storage 1 | 1 . . . Processor 1 | . 1 . . Hackware 1 | . . . 1 Protection . | . . . . Artifact . | . . . . Weapon 19 | 3 6 2 8 Energy Gun 1 | 1 . . . Energy Cannon . | . . . . Ballistic Gun 7 | 2 3 . 2 Ballistic Cannon 3 | . . 1 2 Launcher 6 | . 2 1 3 Special Weapon . | . . . . Impact Weapon . | . . . . Slashing Weapon . | . . . . Piercing Weapon . | . . . . Special Melee Weapon 2 | . 1 . 1 Unidentified Prototypes . | . . . . Parts Lost 16 | . 1 . 15 Power 2 | . . . 2 Propulsion 4 | . . . 4 Utility 5 | . 1 . 4 Weapon 5 | . . . 5 Highest Loss Streak 6 | . 1 . 6 To Critical Strikes . | . . . . Average Slot Usage (%) 88 | . 95 99 78 Engine 9 | . 14 14 2 Core 2 | . . . 5 Treads 14 | . 22 24 3 Leg 6 | . . 3 15 Wheel 2 | . 5 . . Device 10 | . 11 . 13 Storage 12 | . 14 14 9 Processor 5 | . . 14 9 Ballistic Gun 13 | . 19 14 7 Ballistic Cannon 3 | . . 1 7 Launcher 2 | . 2 12 . Special Melee Weapon 2 | . 4 . . Naked Turns 3 | . . . 3 Heaviest Build 24 | 14 17 21 24 Greatest Support 40 | 20 40 40 40 Greatest Overweight (x) 3 | . . . 3 Average Overweight (x) . | . . . . Largest Inventory Capacity 8 | 8 8 8 8 Average Capacity 7 | 7 8 8 7 Most Carried 8 | 5 8 8 8 Average Carried 6 | 2 7 7 6 Final Capacity 8 | 8 8 8 5 Final Carried 7 | 4 7 7 5 Class Distribution -------------------- 61% | Mutant 38% | Scavenger-Mutant Dominant Class ---------------- Mutant | -10/Materials Mutant | -10/Mines Scavenger-Mutant | -9/Materials Resources | -11 -10 -10 -9 ----------- Run | Yrd Mat Min Mat Matter Collected 1200 | 205 210 272 513 Remotely . | . . . . Salvage Created 1030 | . 295 48 687 Parts 90 | . 31 3 56 Haulers Intercepted 2 | . 2 . . Recyclers Shooed 3 | . 2 . 1 Parts Field Recycled . | . . . . Retrieved Matter . | . . . . Parts Self-Destructed . | . . . . Prevented . | . . . . Kills | -11 -10 -10 -9 ------- Run | Yrd Mat Min Mat Combat Hostiles Destroyed 34 | . 10 4 20 Guns 13 | . 6 2 5 Cannons 9 | . . . 9 AOE 12 | . 4 2 6 Classes Destroyed 9 | . 5 . 4 Builder 5 | . . . 5 Tunneler 1 | . . . 1 Hauler 2 | . 2 . . Operator 2 | . 1 . 1 Watcher 5 | . 3 . 2 Swarmer 15 | . 9 3 3 Grunt 13 | . 1 1 11 Brawler 1 | . . . 1 Sentry 5 | . . . 5 Best Kill Streak 8 | . 3 3 8 Combat Bots Only 4 | . 3 3 4 Max Kills in Single Turn 4 | . 3 2 4 Gunslinging 1 | . 1 . . Exploded 3 | . 3 2 1 Melee . | . . . . Uniques/NPCs Destroyed . | . . . . Combat | -11 -10 -10 -9 -------- Run | Yrd Mat Min Mat Hostile Shots Fired 168 | . 23 7 138 Missed 47 | . 8 4 35 Damage Taken 1848 | . 190 33 1625 Core 441 | . 28 . 413 Absorbed by Shields . | . . . . Core Remaining (%) 94 | 100 . 88 . Volleys Fired 123 | . 46 10 67 Largest 2 | . 2 2 2 Hottest 80 | . 70 77 80 Shots Fired 220 | . 92 13 115 Gun 156 | . 88 10 58 Cannon 51 | . . 2 49 Launcher 13 | . 4 1 8 Special . | . . . . Kinetic 190 | . 71 12 107 Thermal 17 | . 17 . . Explosive 13 | . 4 1 8 Electromagnetic . | . . . . Robot Hit Streak 10 | . 9 3 10 Robot Miss Streak 6 | . 5 3 6 Penetration Max . | . . . . Secondary Targets 1 | . 1 . . Max Gunslinging Chain 1 | . 1 . . Shots Hit Robots 125 | . 53 6 66 Core Hits 66 | . 20 4 42 Critical Kills 5 | . . . 5 Critical Parts Destroyed 14 | . . . 14 Critical Strikes 21 | . 1 . 20 Burn 1 | . 1 . . Destroy 20 | . . . 20 Melee Attacks 9 | . 6 . 3 Impact . | . . . . Slashing . | . . . . Piercing . | . . . . Sneak Attacks 9 | . 6 . 3 Combat Hostiles . | . . . . Follow-up Attacks . | . . . . Damage Inflicted 3226 | . 708 225 2293 Guns 1068 | . 514 64 490 Cannons 850 | . . . 850 Explosions 1299 | . 194 161 944 Melee . | . . . . Ramming 9 | . . . 9 Kinetic 1805 | . 401 64 1340 Thermal 113 | . 113 . . Explosive 1299 | . 194 161 944 Electromagnetic . | . . . . Impact . | . . . . Slashing . | . . . . Piercing . | . . . . Highest Corruption 11 | . . . 11 Average Corruption 11 | . . . 11 Corruption Purged . | . . . . Corruption Blocked . | . . . . Effects 5 | . . . 5 Message Errors 1 | . . . 1 Matter Fused 2 | . . . 2 Energy Discharges 1 | . . . 1 Data Loss (minor) 1 | . . . 1 Overload Shots . | . . . . Overflow Damage 54 | . 19 . 35 Projectiles 2 | . . . 2 Explosions 52 | . 19 . 33 Melee . | . . . . Knockbacks 5 | . . . 5 Impact . | . . . . Kinetic 5 | . . . 5 Secondary . | . . . . Self-Inflicted Damage 148 | . 30 1 117 Shots 4 | . 1 1 2 Rammed 1 | . . . 1 Targets Rammed 1 | . . . 1 Kicked . | . . . . Crushed . | . . . . Highest Temperature 165 | . 63 39 165 Average Temperature 39 | . 23 19 46 Received Heat Transfer 471 | . 18 9 444 Siege Activations . | . . . . Robots Corrupted . | . . . . Combat Hostiles . | . . . . Parts Fried . | . . . . Impact Corruptions . | . . . . Robots Melted . | . . . . Combat Hostiles . | . . . . Parts Melted 2 | . 1 . 1 Heat Transferred 407 | . 407 . . Parts Sabotaged . | . . . . Parts Stolen . | . . . . Parts Stripped . | . . . . Power Chain Reactions . | . . . . Alert | -11 -10 -10 -9 ------- Run | Yrd Mat Min Mat Peak Influence 429 | . 296 110 429 Initial 42 | . . . 42 Average 180 | . 105 82 292 Maximum Alert Level 2 | . 1 . 2 Low Security (%) 54 | 100 76 100 16 Level 1 37 | . 23 . 65 Level 2 7 | . . . 18 Level 3 . | . . . . Level 4 . | . . . . Level 5 . | . . . . High Security . | . . . . Max Security . | . . . . Squads Dispatched 5 | . 2 . 3 Investigation 2 | . 1 . 1 Extermination . | . . . . Reinforcement 3 | . 1 . 2 Assault . | . . . . Garrison . | . . . . Intercept . | . . . . Searches Triggered . | . . . . Construction Impeded 1 | . . . 1 Haulers Reinforced . | . . . . Active Scanning Responses . | . . . . Cargo Convoy Interrupts . | . . . . Stealth | -11 -10 -10 -9 --------- Run | Yrd Mat Min Mat Distress Signals 1 | . . . 1 Communications Jammed . | . . . . Distress Signals . | . . . . Times Spotted 55 | . 19 6 30 Peak Tracking Total 6 | . 3 3 6 Tactical Retreats 2 | . . 1 1 Traps | -11 -10 -10 -9 ------- Run | Yrd Mat Min Mat Traps Triggered 5 | . 5 . . Indirectly . | . . . . Trap Hack Attempts . | . . . . Triggered . | . . . . Disarmed . | . . . . Reprogrammed . | . . . . Reused . | . . . . Traps Extracted . | . . . . Installed . | . . . . Triggered . | . . . . Machines | -11 -10 -10 -9 ---------- Run | Yrd Mat Min Mat Machines Disabled 4 | . . . 4 Max in Single Turn 2 | . . . 2 Machines Repaired . | . . . . Machines Dismantled . | . . . . Machines Sabotaged . | . . . . Overloaded Fab Kills . | . . . . Hacking | -11 -10 -10 -9 --------- Run | Yrd Mat Min Mat Machines Accessed 10 | . 6 . 4 Terminals 10 | . 6 . 4 Fabricators . | . . . . Repair Stations . | . . . . Recycling Units . | . . . . Scanalyzers . | . . . . Garrison Access . | . . . . Total Hacks 21 | . 14 . 7 Successful 6 | . 4 . 2 Failed 15 | . 10 . 5 Catastrophic 2 | . 1 . 1 Database Lockouts . | . . . . Manual 10 | . 3 . 7 Terminals 21 | . 14 . 7 Fabricators . | . . . . Repair Stations . | . . . . Recycling Units . | . . . . Scanalyzers . | . . . . Garrison Access . | . . . . Terminal Hacks 3 | . 3 . . Robot Analysis 2 | . 2 . . Alert Level 1 | . 1 . . Fabricator Hacks . | . . . . Repair Station Hacks . | . . . . Recycling Unit Hacks . | . . . . Scanalyzer . | . . . . Garrison Access Hacks . | . . . . Unauthorized Hacks 3 | . 1 . 2 Terminals 3 | . 1 . 2 Assimilate 3 | . 1 . 2 Fabricators . | . . . . Repair Stations . | . . . . Recycling Units . | . . . . Scanalyzers . | . . . . Garrison Access . | . . . . Data Cores Recovered . | . . . . Used . | . . . . Hacking Detections 7 | . 5 . 2 Full Trace Events 1 | . . . 1 Feedback Events . | . . . . Feedback Blocked . | . . . . Robot Schematics Acquired . | . . . . Robots Built . | . . . . Authchips . | . . . . Time . | . . . . Total Robot Build Rating . | . . . . Part Schematics Acquired . | . . . . Parts Built . | . . . . Authchips . | . . . . Time . | . . . . Total Part Build Rating . | . . . . Parts Repaired . | . . . . Time . | . . . . Parts Recycled . | . . . . Recycled Matter . | . . . . Retrieved Matter . | . . . . Retrieved Components . | . . . . Parts Scanalyzed . | . . . . Part Schematics Acquired . | . . . . Parts Damaged . | . . . . Bothacking | -11 -10 -10 -9 ------------ Run | Yrd Mat Min Mat Used RIF Installer . | . . . . Robots Hacked 5 | . 4 . 1 Non-combat 5 | . 4 . 1 Combat . | . . . . Robot Hacks Applied 6 | . 5 . 1 no_distress 6 | . 5 . 1 Relay Couplers Released . | . . . . Fabnet Peak Effective % . | . . . . Robots Rewired . | . . . . Allies Hacked . | . . . . Hacks Repelled . | . . . . Allies | -11 -10 -10 -9 -------- Run | Yrd Mat Min Mat Total Allies . | . . . . Largest Group . | . . . . Highest-Rated Group . | . . . . Highest-Rated Ally . | . . . . Total Orders . | . . . . Ally Attacks . | . . . . Total Damage . | . . . . Kills . | . . . . Allies Corrupted . | . . . . Allies Melted . | . . . . Intel | -11 -10 -10 -9 ------- Run | Yrd Mat Min Mat Robot Analysis Total 2 | . 2 . . Derelict Logs Recovered . | . . . . Drone Launches . | . . . . Drone Recoveries . | . . . . Exploration | -11 -10 -10 -9 ------------- Run | Yrd Mat Min Mat Turns Passed 2423 | 36 1111 259 1017 Spaces Moved 1506 | 26 670 146 664 Core 181 | 5 . . 176 Treads 701 | . 487 123 91 Legs 417 | . . 23 394 Wheels 204 | 21 183 . . Hover . | . . . . Flight 3 | . . . 3 Fastest Speed 37 | 50 80 120 37 Average Speed 127 | 74 138 153 113 Slowest Speed 240 | 80 160 160 240 Overloaded Moves . | . . . . Propulsion Burnouts . | . . . . Robots Hopped . | . . . . Cave-ins Triggered 1 | . . . 1 Exploration Rate (%) 49 | 3 96 46 52 Regions Visited 3 Branch Regions 1 Pre-discovered Areas . | . . . . Known Exits Taken 2 | . 1 1 . Unknown Exits Taken 1 | 1 . . . Scrap Searched . | . . . . Spaces Dug 19 | . 19 . . Terrain Destroyed 174 | . 37 10 127 Melee . | . . . . Projectile 22 | . . . 22 AOE 152 | . 37 10 105 Terrain Rammed . | . . . . Walls Destroyed . | . . . . Machines Disabled . | . . . . Actions | -11 -10 -10 -9 --------- Run | Yrd Mat Min Mat Total 1783 | 42 764 169 808 Wait 55 | . 19 . 36 Move 1503 | 25 669 145 664 Hop . | . . . . Pick Up 37 | 10 11 5 11 Fast Attach 4 | . 1 . 3 Attach 29 | 6 8 2 13 Detach 2 | . . . 2 Swap 11 | 1 3 2 5 Drop 9 | . 1 5 3 Fire 123 | . 46 10 67 Melee 9 | . 6 . 3 Ram 1 | . . . 1 Kick . | . . . . Crush . | . . . . Escape Stasis . | . . . . Rewire . | . . . . Trap . | . . . . Miscellaneous . | . . . . Route ------- -11/Scrapyard -10/Materials (discovered 4 exits: *Mat x3 / *Min) -10/Mines -9/Materials History --------- Turn | Location | Event 21 | -11/Scrapyard | Discovered new exit (range 15) 37 | -11/Scrapyard | Entered Materials 100 | -10/Materials | Discovered new exit (range 15) 186 | -10/Materials | Discovered new exit (range 16) 303 | -10/Materials | Build established: Mutant 622 | -10/Materials | Discovered new exit (range 10) 913 | -10/Materials | Discovered new exit (range 16) 1146 | -10/Materials | Identified exit to Mines 1148 | -10/Materials | Entered Mines 1203 | -10/Mines | Assembled infested the area 1208 | -10/Mines | Assisted by a Guerilla fighting off Assembled 1387 | -10/Mines | Discovered new exit (range 15) 1405 | -10/Mines | Identified exit to Materials 1407 | -10/Mines | Entered Materials 1407 | -9/Materials | Evolved 2 slots: Utility x2 1680 | -9/Materials | Build established: Scavenger-Mutant 2155 | -9/Materials | Lost 3 parts (1u2w) 2289 | -9/Materials | Core integrity fell below 50% 2294 | -9/Materials | Crushed by falling debris 2294 | -9/Materials | System corruption reached 10% 2325 | -9/Materials | Lost 6 parts (2n3u1w) 2405 | -9/Materials | Core integrity fell below 20% 2424 | -9/Materials | Destroyed by Y-45 Defender with Beam Rifle Last Messages --------------- >>Trojan(Assimilate) Trojan loaded successfully. Testing... System interface override in place. Connecting with Terminal... C-30 ARC bursts open, deploying its payload. S-10 Pest unfolds itself. K-01 Serf collects debris. Acquired Arm. Wheel. S-10 Pest destroyed. System corrupted: Matter fused (-8). Datajack destroyed. S-10 Pest destroyed. Arm. Wheel severed. Acquired Flight Unit. Critical hit (Burn: +37). Acquired Flight Unit. K-01 Serf collects debris. Acquired Flight Unit. K-01 Serf collects debris. Map ----- +----------------------------------------------------+ | ???????????????????????????####### ##""" # | | ????????????????????????????????#######" ! | | ??????????????????????????????????????#"* ! | | ??????????????????????????????????????# | | ??????????????????????????????????????# # | | ??????????????????????????????????????# | | ??????????????????????????????????????# | | ?????????????????????????????"????????# | | ?????????????????????????#????????????### # | | ????????????????????????????????????????## # | | ????????????????????????????????????????!!####### | | ??????????????????????????????????? ??? ??????# | | ??????????????????????????? ?????????? ???????# | | ?????????#??????????????????????????? ????##### | | ??????????# ???????????????????? ??? ?? | | ??????????# ????????????????????????????? | | ??????????# ???????????????????######???????#???# | | ??????????# ???????############ #???????????? | | ??????????# ??????# * [## #???????????? | | ??????????# ?????# ## #???????????? | | ??????? ??# ######= """ ?# "" #???????????? | | ?????? # #* """"" ?# "" #??????????? | | ????? #kg """"" ## T" #???????????? | | ????? Y=*l""""" ## "" #???????????? | | ????? ||! #[%= """ ## "" #???????????? | | ????? ||!% # [ @ ## #????#??##### | | ????? |!! ##############+########## | | ????? | | ????? ! | | ?????? | | ?????? ############ ######+########## | | ??????? [[ ???????????# #??# #?????## | | ??????? [[ ?#??????????# #??# #??????# | | ???????" [[ ?????????????# ##?#"" #??????# | | ????????####??????????????# #??#"T #??????# | | ??????????????????????????# #??#"" #??????# | | ??????????????????????????# #??# #??????# | | ?????????????????????? ???# #??############### | | ??????????????????????????# #?????????# | | ?????????????????????????? ?????????# | | ?????????????????????????? ?????????# | | ?????????????????????????? ???????#?# ####### | | ?????????????????????????? ??#??????# #?????? | | ??????????????????????????#+##?????????# #?????? | | ???????????????????????????????????????# ##????? | | ???????????????????????????????????????#####?????? | | ???????????????????????????????????????????#?????? | | ?????????????????????????????????????????????????? | | ?????????????????????????????????????????????????? | | ?????????????????????????????????????????????????? | +----------------------------------------------------+ Best States ------------- Heat Dissipation 28 Energy Generation 14 Energy Capacity 265 Matter Stores 300 Matter Capacity 300 Sight Range 16 Robot Scan Range 14 Terrain Scan Range 16 Terrain Scan Density 10 Evasion (%) 55 Recoil Reduction 2 Offensive Hacking 10 Item Schematics ----------------- None Robot Schematics ------------------ None Fabricated ------------ Nothing Alien Tech Used ----------------- None Achievements -------------- None Challenges ------------ None Game ------ Seed HoverSeismicBank Manual? 0 Play Time 00:32:36 Cumulative 26.2 hours Start 2024.04.11 @ 08:40:23 End 2024.04.11 @ 09:14:53 Sessions 1 Manual Loads 0 Difficulty Rogue Special Mode None Game No. 33 Rogue 24 Adventurer 9 Explorer 0 Win Type - Total 0 Types 0/0/0/0/0/0/0/0/0 Lore% 22 Gallery% 35 Achievement% 28 Wizard Run 0 Options --------- Layout 1 ASCII 0 Keyboard 0 Movement Mouse Keybinds 0 Fullscreen 1 Font 24/Smallcaps Map View 50x35 Zoom Use 0% Tactical HUD 0 Map Filters NONE Filters NONE Steam 1 RUN: 355700e7-a1a9-4698-a77a-49fee992b862